bitfinex-derivatives/quotes_SOLF0:USTF0_20251002
["timestamp","ask_amount","ask_price","bid_price","bid_amount"]
[1759431982399,7.28,232.35,232.24,5.64894272]
[1759431982594,3.8711,232.33,232.24,9.52144272]
[1759431982898,7.28,232.32,232.24,9.52144272]
[1759431984394,7.28,232.32,232.25,3.8722]
[1759431985001,7.28,232.32,232.24,5.64894272]
[1759431985493,11.1512,232.32,232.24,5.64894272]
[1759431985691,7.28,232.32,232.24,5.64894272]
[1759431986094,7.75,232.38,232.25,4.29]
[1759431986303,7.75,232.4,232.26,3.8721]
[1759431986506,7.75,232.38,232.26,3.8721]
[1759431986797,7.75,232.36,232.26,3.8721]
[1759431987101,11.6207,232.36,232.26,3.8721]
[1759431987897,11.6207,232.36,232.28,3.8718]
[1759431987898,7.75,232.36,232.28,3.8718]
[1759431988097,7.75,232.36,232.25,4.29]
[1759431988804,7.75,232.36,232.29,3.8716]
[1759431990306,7.75,232.43,232.33,2.75571931]
[1759431990507,2.94383961,232.42,232.33,2.75571931]
[1759431990701,7.75,232.43,232.34,4.29]
[1759431990909,7.75,232.46,232.36,2.75571931]
[1759431991103,7.75,232.46,232.37,4.29]
[1759431991505,7.75,232.46,232.39,2.75571931]
[1759431991705,10.50246156,232.5,232.39,2.75571931]
[1759431991905,7.56,232.5,232.39,2.75571931]
[1759431992713,11.4284,232.5,232.39,2.75571931]
[1759431993209,2.94170836,232.49,232.39,2.75571931]
[1759431993511,11.4284,232.5,232.39,2.75571931]
[1759431994710,7.56,232.47,232.37,4.29]
[1759431994904,7.56,232.47,232.39,2.75571931]
[1759431995708,7.56,232.47,232.39,6.62561931]
[1759431996008,7.56,232.47,232.39,2.75571931]
[1759431996606,7.56,232.47,232.41,3.8697]
[1759431997209,7.56,232.47,232.4,2.75571931]
[1759431997710,7.56,232.47,232.38,3.8701]
[1759431999010,7.56,232.47,232.4,3.8699]
[1759431999602,7.56,232.47,232.4,8.1499]
[1759431999804,7.56,232.47,232.42,3.8695]
[1759432000115,7.56,232.5,232.39,2.75571931]
[1759432000313,11.4282,232.5,232.39,2.75571931]
[1759432000708,11.4282,232.5,232.41,3.8697]
[1759432001013,11.4282,232.5,232.39,2.75571931]
[1759432001703,10.49983396,232.49,232.37,4.28]
[1759432001910,7.56,232.47,232.37,4.28]
[1759432002914,7.56,232.47,232.33,51.27571931]
[1759432003113,7.56,232.47,232.36,8.1505]
[1759432003509,7.56,232.47,232.41,3.8697]
[1759432003903,3.868,232.52,232.41,2.75571931]
[1759432004107,10.49961232,232.51,232.41,2.75571931]
[1759432005608,7.56,232.51,232.42,3.8694]
[1759432005812,7.56,232.51,232.43,4.28]
[1759432008211,7.56,232.51,232.45,1.76171353]
[1759432018726,7.56,232.51,232.45,5.63061353]
[1759432021132,7.56,232.51,232.42,1.76171353]
[1759432021629,7.56,232.51,232.43,3.8692]
[1759432022530,11.4282,232.51,232.42,1.76171353]
[1759432023621,11.4282,232.51,232.42,5.63111353]
[1759432024434,12.96674051,232.54,232.48,1.76171353]
[1759432024636,7.4,232.55,232.48,1.76171353]
[1759432025231,1.76171353,232.61,232.51,6.03171353]
[1759432025432,7.4,232.64,232.58,1.76171353]
[1759432027235,7.4,232.64,232.55,1.76171353]
[1759432028538,11.266,232.64,232.55,5.62911353]
[1759432028834,7.4,232.64,232.58,1.76171353]
[1759432029835,3.8652,232.69,232.61,1.76171353]
[1759432030041,7.4,232.7,232.61,1.76171353]
[1759432030237,7.4,232.7,232.6,4.27]
[1759432030439,7.4,232.7,232.64,1.76171353]
[1759432030741,7.4,232.75,232.67,1.76171353]
[1759432032239,3.8643,232.74,232.67,1.76171353]
[1759432032841,7.4,232.71,232.59,1.76171353]
[1759432033042,7.4,232.68,232.59,1.76171353]
[1759432034639,3.8654,232.67,232.59,1.76171353]
[1759432035536,7.4,232.66,232.59,1.76171353]
[1759432036342,3.8658,232.65,232.59,1.76171353]
[1759432036940,7.4,232.66,232.59,1.76171353]
[1759432037741,11.2656,232.66,232.59,1.76171353]
[1759432038340,7.4,232.71,232.6,4.27]
[1759432038542,7.4,232.71,232.68,1.76171353]
[1759432038735,7.4,232.77,232.68,1.76171353]
[1759432039140,3.8642,232.75,232.68,1.76171353]
[1759432039539,3.8644,232.73,232.68,1.76171353]
[1759432039739,7.4,232.72,232.68,1.76171353]
[1759432039934,3.8644,232.73,232.68,1.76171353]
[1759432040138,7.4,232.72,232.68,1.76171353]
[1759432040545,3.8647,232.71,232.64,1.76171353]
[1759432040950,7.4,232.72,232.67,1.76171353]
[1759432041446,7.4,232.72,232.67,6.03171353]
[1759432042546,12.99183227,232.76,232.67,1.76171353]
[1759432042745,7.4,232.77,232.67,1.76171353]
[1759432042943,3.8639,232.76,232.67,1.76171353]
[1759432043244,7.4,232.75,232.67,1.76171353]
[1759432044253,11.2642,232.75,232.67,1.76171353]
[1759432046245,11.2642,232.75,232.68,1.76171353]
[1759432046752,7.4,232.75,232.68,1.76171353]
[1759432047453,7.4,232.75,232.66,4.27]
[1759432048657,3.8644,232.73,232.66,4.27]
[1759432049053,7.01,232.72,232.63,1.76171353]
[1759432049253,3.865,232.7,232.63,1.76171353]
[1759432049849,7.01,232.72,232.63,1.76171353]
[1759432050451,1.76171353,232.71,232.6,1.76171353]
[1759432050654,7.01,232.7,232.58,1.76171353]
[1759432050851,7.01,232.7,232.56,4.27]
[1759432051051,1.76171353,232.69,232.56,4.27]
[1759432051346,7.01,232.68,232.61,1.76171353]
[1759432051552,7.52,232.72,232.62,8.1361]
[1759432052057,7.52,232.72,232.64,3.8659]
[1759432053864,7.52,232.72,232.65,4.27]
[1759432057257,16.54223998,232.77,232.65,4.27]
[1759432057454,7.52,232.76,232.67,1.76171353]
[1759432058058,7.52,232.83,232.73,6.03171353]
[1759432058461,11.3829,232.83,232.73,6.03171353]
[1759432058857,7.52,232.83,232.73,6.03171353]
[1759432059263,7.52,232.83,232.73,1.76171353]
[1759432059465,7.52,232.83,232.74,4.27]
[1759432060159,3.8629,232.82,232.74,4.27]
[1759432060663,7.52,232.83,232.74,4.27]
[1759432064363,7.52,232.83,232.68,44.18]
[1759432064364,7.52,232.83,232.69,4.27]
[1759432064563,7.52,232.78,232.69,4.27]
[1759432065462,12.67324101,232.84,232.65,1.76171353]
[1759432065463,1.76171353,232.76,232.65,1.76171353]
[1759432065671,9.28171353,232.76,232.66,4.27]
[1759432066166,7.52,232.76,232.66,4.27]
[1759432066366,9.28171353,232.76,232.66,4.27]
[1759432067066,7.52,232.81,232.71,3.8646]
[1759432067268,12.67324101,232.84,232.63,41.62]
[1759432067269,7.52,232.86,232.76,4.27]
[1759432067566,2.94043277,232.85,232.76,4.27]
[1759432067761,7.52,232.84,232.71,4.27]
[1759432067967,12.2221463,232.84,232.73,1.76171353]
[1759432068266,7.52,232.84,232.76,1.76171353]
[1759432068464,9.28171353,232.86,232.76,1.76171353]
[1759432068964,9.28171353,232.86,232.72,19.11]
[1759432069170,7.52,232.82,232.72,6.03171353]
[1759432070270,7.52,232.82,232.72,4.27]
[1759432071471,7.52,232.82,232.72,8.1345]
[1759432072263,7.52,232.82,232.74,4.27]
[1759432072468,7.52,232.87,232.74,8.1342]
[1759432072664,40.08,232.94,232.75,4.27]
[1759432072873,7.52,232.96,232.79,4.27]
[1759432073070,7.52,232.96,232.81,4.27]
[1759432073370,10.26609424,232.96,232.81,4.27]
[1759432073675,7.52,232.96,232.81,4.27]
[1759432073871,7.52,232.93,232.81,4.27]
[1759432074372,7.52,232.93,232.76,4.27]
[1759432074572,7.52,232.89,232.71,4.27]
[1759432075667,7.52,232.87,232.71,4.27]
[1759432076070,7.52,232.87,232.72,3.8645]
[1759432076275,7.52,232.87,232.73,4.27]
[1759432076968,7.52,232.87,232.74,3.8641]
[1759432077366,7.52,232.87,232.73,4.27]
[1759432077572,7.52,232.87,232.7,3.8648]
[1759432077573,11.3822,232.87,232.7,3.8648]
[1759432078473,3.8625,232.85,232.7,3.8648]
[1759432078675,7.52,232.84,232.7,3.8648]
[1759432078870,7.52,232.82,232.7,3.8648]
[1759432079268,7.52,232.82,232.69,4.27]
[1759432079573,95.34,232.84,232.68,4.27]
[1759432079777,7.52,232.83,232.68,4.27]
[1759432080974,25.58,232.83,232.72,3.8645]
[1759432081179,25.58,232.83,232.68,4.27]
[1759432081483,7.05,232.76,232.63,4.27]
[1759432082180,7.05,232.76,232.64,60.1365]
[1759432082375,7.05,232.76,232.71,3.8646]
[1759432082573,7.05,232.76,232.7,60.1212]
[1759432082782,7.05,232.82,232.71,60.1185]
[1759432082975,7.05,232.82,232.7,60.1212]
[1759432083281,7.05,232.82,232.72,60.1151]
[1759432083680,64.68,232.85,232.77,3.8637]
[1759432084983,7.05,232.86,232.77,60.1029]
[1759432085183,7.05,232.86,232.79,60.0977]
[1759432085383,7.05,232.94,232.8,60.0951]
[1759432085579,7.05,232.94,232.83,60.0876]
[1759432086086,7.05,232.94,232.83,64.3576]
[1759432086285,7.05,232.94,232.88,3.8618]
[1759432087479,7.05,232.94,232.9,3.8615]
[1759432087679,312.56,232.97,232.9,3.8615]
[1759432087880,312.56,232.97,232.88,60.0747]
[1759432088788,7.05,232.99,232.88,60.0747]
[1759432089286,7.05,232.99,232.89,3.8616]
[1759432090783,7.05,232.99,232.87,4.27]
[1759432091088,7.05,232.99,232.88,60.0744]
[1759432091678,7.05,232.99,232.92,3.8611]
[1759432092883,7.05,233.03,232.94,3.8609]
[1759432093482,7.05,233.03,232.92,3.8612]
[1759432093688,7.05,233.03,232.85,60.0811]
[1759432093885,7.05,233.03,232.86,4.27]
[1759432094391,7.05,233.03,232.89,64.3421]
[1759432095791,7.05,233.03,232.93,3.861]
[1759432096188,10.9095,233.03,232.9,3.8615]
[1759432096495,10.9095,233.03,232.89,4.27]
[1759432096993,7.05,233.0,232.92,3.8612]
[1759432097194,7.05,233.0,232.89,4.27]
[1759432097790,7.05,233.0,232.91,3.8614]
[1759432098093,7.05,233.0,232.9,60.0689]
[1759432098286,7.05,233.0,232.95,3.8607]
[1759432098493,7.05,233.0,232.95,8.1307]
[1759432098692,3.8591,233.06,232.95,3.8607]
[1759432098693,7.05,233.05,232.95,3.8607]
[1759432098987,3.8584,233.1,232.96,60.0536]
[1759432099193,319.59,233.11,232.97,4.27]
[1759432100596,323.4481,233.11,233.02,3.8596]
[1759432101296,323.4481,233.11,232.97,4.27]
[1759432101999,323.4481,233.11,233.03,3.8594]
[1759432102191,319.59,233.11,233.0,60.0428]
[1759432102392,319.59,233.11,233.0,64.3128]
[1759432103188,7.05,233.11,233.02,60.0385]
[1759432103400,7.05,233.11,233.0,4.27]
[1759432103694,7.05,233.11,233.03,3.8594]
[1759432104097,7.05,233.11,233.0,4.27]
[1759432104288,7.05,233.11,233.0,8.1298]
[1759432105404,7.11,233.17,233.05,4.26]
[1759432105897,7.11,233.16,232.97,4.26]
[1759432106198,59.9899,233.21,232.97,64.3112]
[1759432106403,111.7794,233.2,232.97,8.1204]
[1759432106599,60.0004,233.17,232.98,4.26]
[1759432106900,59.9977,233.18,232.98,4.26]
[1759432106901,7.11,233.14,232.98,4.26]
[1759432107397,7.11,233.12,232.98,4.26]
[1759432108298,60.0047,233.16,232.98,4.26]
[1759432108299,7.11,233.1,232.98,4.26]
[1759432109197,7.11,233.16,233.02,4.26]
[1759432111106,10.9673,233.16,233.02,4.26]
[1759432111701,7.11,233.16,233.02,4.26]
[1759432112594,114.49,233.16,233.02,4.26]
[1759432113799,3.8577,233.14,233.02,4.26]
[1759432113999,60.0087,233.14,232.97,25.3404]
[1759432114205,7.08,233.13,232.97,8.1204]
[1759432114605,7.08,233.12,232.97,4.26]
[1759432114998,60.016,233.11,232.97,4.26]
[1759432115305,60.011,233.13,232.93,40.72]
[1759432115306,60.0216,233.09,232.93,40.72]
[1759432115505,7.08,233.07,232.93,40.72]
[1759432116804,7.08,233.07,232.95,4.26]
[1759432117303,7.08,233.07,232.96,3.8605]
[1759432117709,10.9389,233.07,232.95,4.26]
[1759432118402,3.8591,233.05,232.95,8.1207]
[1759432118601,7.08,233.04,232.9,4.26]
[1759432118906,60.0323,233.05,232.86,4.26]
[1759432118907,7.08,233.02,232.86,4.26]
[1759432119304,3.8601,232.99,232.86,8.1221]
[1759432119508,7.08,232.98,232.86,8.1221]
[1759432119806,3.8604,232.97,232.86,8.1221]
[1759432120204,7.08,232.96,232.84,5.70983707]
[1759432120405,7.08,232.96,232.85,4.26]
[1759432120610,7.08,232.96,232.87,3.862]
[1759432121411,7.08,232.96,232.89,3.8617]
[1759432122214,7.08,232.96,232.86,3.8621]
[1759432122510,7.08,232.96,232.85,4.26]
[1759432122902,7.08,232.96,232.84,5.70983707]
[1759432123106,7.08,232.96,232.8,4.26]
[1759432123503,7.08,232.93,232.83,3.8627]
[1759432124515,7.08,232.93,232.83,60.0875]
[1759432124814,372.2621,233.09,232.85,60.0821]
[1759432124815,7.08,232.98,232.85,60.0821]
[1759432125016,7.08,232.98,232.91,3.8614]
[1759432125615,7.08,232.98,232.88,3.8619]
[1759432126117,10.9403,232.98,232.88,3.8619]
[1759432126318,7.08,232.98,232.81,4.26]
[1759432126506,7.08,232.91,232.81,4.26]
[1759432127112,36.32,232.92,232.77,312.48]
[1759432127411,36.32,232.92,232.76,4.26]
[1759432127412,7.08,232.91,232.76,4.26]
[1759432127920,114.48,232.91,232.78,3.8634]
[1759432128215,7.08,232.9,232.76,4.26]
[1759432128713,7.08,232.84,232.76,4.26]
[1759432128921,7.08,232.84,232.74,3.8641]
[1759432129108,7.08,232.84,232.71,4.26]
[1759432129312,7.08,232.84,232.71,8.1247]
[1759432129509,7.08,232.84,232.71,4.26]
[1759432130015,10.9426,232.84,232.71,4.26]
[1759432130615,3.8629,232.82,232.71,4.26]
[1759432130811,7.08,232.8,232.66,4.26]
[1759432131018,7.08,232.78,232.62,4.2245287]
[1759432131219,7.08,232.78,232.63,3.866]
[1759432131521,7.08,232.78,232.62,4.2245287]
[1759432131720,7.08,232.78,232.61,4.26]
[1759432131915,7.08,232.78,232.62,3.8662]
[1759432132115,7.08,232.78,232.61,8.4845287]
[1759432132620,7.08,232.78,232.62,4.26]
[1759432133121,7.08,232.78,232.65,4.26]
[1759432133724,7.08,232.78,232.66,3.8655]
[1759432134616,10.9436,232.78,232.66,3.8655]
[1759432134814,10.9436,232.78,232.65,4.26]
[1759432135121,10.9443,232.74,232.65,4.26]
[1759432135314,7.08,232.74,232.61,4.2245287]
[1759432135518,7.08,232.74,232.6,4.26]
[1759432135722,3.865,232.7,232.6,4.26]
[1759432136024,7.08,232.7,232.6,4.26]
[1759432138226,10.9438,232.77,232.62,4.26]
[1759432138417,7.08,232.77,232.65,3.8657]
[1759432138620,7.08,232.77,232.66,4.26]
[1759432138825,7.08,232.77,232.66,64.3902]
[1759432139023,7.08,232.77,232.66,4.26]
[1759432140221,7.08,232.77,232.68,3.8651]
[1759432140632,7.08,232.77,232.66,4.26]
[1759432140924,7.08,232.77,232.67,3.8654]
[1759432141125,7.08,232.77,232.66,4.26]
[1759432141325,12.54791343,232.92,232.69,60.1225]
[1759432141523,114.69,232.9,232.7,4.28]
[1759432141726,114.69,232.9,232.73,4.28]
[1759432141727,118.5517,232.9,232.73,4.28]
[1759432142425,7.25,232.9,232.74,60.1109]
[1759432142630,7.25,232.9,232.77,4.28]
[1759432143025,7.25,232.9,232.79,3.8633]
[1759432143225,7.25,232.9,232.8,4.2245287]
[1759432144031,7.25,232.95,232.81,4.28]
[1759432144239,7.25,232.95,232.82,60.0897]
[1759432144423,7.25,232.95,232.84,4.2245287]
[1759432144629,4.0356383,233.05,232.85,60.0823]
[1759432144824,53.31,233.04,232.84,8.5045287]
[1759432145129,7.25,233.0,232.84,4.28]
[1759432145332,60.0465,232.99,232.79,4.28]
[1759432145527,7.25,232.98,232.79,4.28]
[1759432145729,7.25,232.96,232.79,4.28]
[1759432146124,7.25,232.96,232.84,3.8625]
[1759432146334,7.25,232.96,232.84,4.28]
[1759432146733,7.25,232.96,232.84,64.3628]
[1759432146934,7.25,232.96,232.88,3.8619]
[1759432147630,7.25,233.04,232.87,4.28]
[1759432147834,7.25,233.04,232.88,60.0725]
[1759432148331,11.1094,233.04,232.89,3.8617]
[1759432148638,7.25,233.04,232.9,4.2245287]
[1759432149024,7.25,233.04,232.89,4.28]
[1759432149224,60.0388,233.02,232.86,4.2245287]
[1759432149436,7.25,233.01,232.84,4.28]
[1759432149627,7.25,233.01,232.89,3.8616]
[1759432149833,7.25,233.01,232.84,4.28]
[1759432150531,7.25,233.01,232.88,64.3544]
[1759432151033,7.25,233.01,232.89,60.072]
[1759432151535,7.25,233.01,232.92,3.8612]
[1759432151740,7.25,233.01,232.91,60.0663]
[1759432152129,3.8586,233.08,232.94,3.8608]
[1759432152437,376.7734287,233.14,232.94,3.8608]
[1759432152438,7.25,233.07,232.94,8.0853287]
[1759432153036,7.25,233.07,232.96,3.8605]
[1759432154337,7.25,233.07,232.97,4.28]
[1759432154738,7.25,233.07,232.94,4.2245287]
[1759432154941,3.8592,233.05,232.94,4.2245287]
[1759432155140,7.25,233.04,232.92,4.28]
[1759432155839,7.25,233.04,232.88,8.5045287]
[1759432156029,7.25,232.99,232.88,8.5045287]
[1759432156233,7.25,232.99,232.88,4.28]
[1759432156637,3.8603,232.98,232.88,4.28]
[1759432156840,3.8603,232.98,232.84,8.0870287]
[1759432156841,7.25,232.99,232.83,316.76]
[1759432157338,7.25,232.95,232.83,316.76]
[1759432157543,7.25,232.95,232.83,4.28]
[1759432158737,7.25,233.03,232.85,4.28]
[1759432158937,11.1095,233.03,232.89,4.28]
[1759432159841,3.8599,233.01,232.89,4.28]
[1759432160443,7.25,233.0,232.89,4.28]
[1759432160641,3.8601,232.99,232.86,3.8621]
[1759432160841,3.8601,232.99,232.84,68.8445287]
[1759432161041,3.8601,232.99,232.84,8.5045287]
[1759432161238,7.25,233.0,232.89,3.8617]
[1759432161444,7.25,233.0,232.85,4.28]
[1759432162147,3.8604,232.98,232.85,4.28]
[1759432162347,7.25,232.97,232.85,4.28]
[1759432162949,7.25,232.93,232.8,4.28]
[1759432164651,7.25,232.93,232.83,4.25]
[1759432165350,7.25,232.93,232.85,3.8623]
[1759432165751,7.25,232.93,232.83,4.25]
[1759432166247,7.25,232.93,232.79,4.2245287]
[1759432166450,7.25,232.93,232.78,4.25]
[1759432167247,3.8615,232.91,232.78,8.1135]
[1759432167448,7.52,232.9,232.78,8.1135]
[1759432168054,3.8618,232.89,232.78,8.1135]
[1759432168355,7.52,232.91,232.77,5.6996569]
[1759432168549,167.8318,232.9,232.75,3.864]
[1759432168756,7.52,232.89,232.75,3.864]
[1759432169353,7.52,232.89,232.77,3.8637]
[1759432169660,7.52,232.89,232.78,60.1001]
[1759432169857,7.52,232.89,232.78,64.3246287]
[1759432170552,7.52,232.89,232.79,3.8634]
[1759432170755,54.82,232.95,232.71,4.25]
[1759432170756,7.52,232.9,232.71,4.25]
[1759432171154,7.52,232.89,232.77,3.8637]
[1759432172255,7.52,232.89,232.8,3.8632]
[1759432172451,7.52,232.89,232.76,4.25]
[1759432172658,7.52,232.89,232.79,3.8634]
[1759432172953,7.52,232.89,232.8,4.27]
[1759432173153,7.52,232.89,232.85,3.8624]
[1759432173354,7.52,232.89,232.8,4.27]
[1759432173754,7.78,232.97,232.84,60.085]
[1759432174456,7.78,232.97,232.88,3.8619]
[1759432175764,7.78,232.97,232.9,3.8615]
[1759432175959,7.78,232.97,232.85,60.0806]
[1759432175960,33.71592654,233.08,232.89,4.2245287]
[1759432176259,33.71592654,233.08,232.91,4.27]
[1759432176260,3.8592,233.05,232.91,4.27]
[1759432176654,7.78,233.04,232.91,8.1313]
[1759432176853,7.78,233.0,232.86,4.27]
[1759432177462,3.8603,232.98,232.88,3.8619]
[1759432177763,7.78,232.97,232.86,4.27]
[1759432178668,3.8606,232.96,232.86,4.27]
[1759432178870,7.78,232.97,232.86,4.27]
[1759432179257,7.78,232.97,232.81,4.2245287]
[1759432179460,7.78,232.97,232.81,4.27]
[1759432180371,11.6405,232.97,232.81,4.27]
[1759432180966,60.0434,233.01,232.81,4.27]
[1759432180967,7.78,232.9,232.81,4.27]
[1759432181271,7.78,232.9,232.75,4.27]
[1759432181770,7.78,232.9,232.77,4.27]
[1759432181966,7.78,232.9,232.78,60.1003]
[1759432182171,7.78,232.97,232.84,8.4945287]
[1759432183068,7.78,232.97,232.88,3.8618]
[1759432183268,7.78,232.97,232.85,60.0818]
[1759432183472,7.78,232.97,232.89,3.8617]
[1759432183668,11.6396,233.02,232.88,60.075]
[1759432183967,7.78,233.02,232.9,4.2245287]
[1759432184168,7.78,233.02,232.95,3.8607]
[1759432184372,7.78,233.02,232.9,64.2931287]
[1759432185269,7.78,233.02,232.91,4.27]
[1759432185468,7.78,233.02,232.92,60.0645]
[1759432185673,7.78,233.07,232.93,60.0618]
[1759432185869,67.8124,233.05,232.91,4.27]
[1759432186272,7.78,233.05,232.91,4.27]
[1759432186475,3.8596,233.02,232.92,3.8612]
[1759432186771,7.78,233.05,232.92,60.0643]
[1759432186967,7.78,233.05,232.93,60.062]
[1759432187366,7.78,233.05,232.92,60.0644]
[1759432187567,320.24,233.1,232.96,4.27]
[1759432187968,3.8588,233.07,232.96,4.27]
[1759432188368,7.78,233.1,232.96,4.27]
[1759432188573,11.6384,233.1,232.98,3.8602]
[1759432189478,3.8587,233.08,232.98,3.8602]
[1759432190376,11.639,233.06,232.96,4.27]
[1759432190578,7.78,233.06,232.96,4.27]
[1759432191577,7.78,233.06,232.97,3.8604]
[1759432192377,7.78,233.06,233.0,3.8598]
[1759432195984,7.78,233.06,232.96,4.27]
[1759432196186,7.78,233.06,232.96,64.3238]
[1759432196689,7.78,233.06,232.96,4.27]
[1759432196884,7.78,233.15,233.0,60.0428]
[1759432197085,7.78,233.15,233.01,4.27]
[1759432197293,11.6375,233.15,233.04,3.8591]
[1759432198387,7.78,233.15,233.01,4.27]
[1759432199190,7.78,233.13,233.02,3.8596]
[1759432199792,3.858,233.12,233.02,3.8596]
[1759432200192,7.78,233.11,233.02,3.8596]
[1759432200895,7.78,233.15,233.06,3.8588]
[1759432201190,7.78,233.15,233.04,64.3039]
[1759432201388,7.78,233.15,233.07,60.0249]
[1759432201887,7.78,233.15,233.05,60.0304]
[1759432202190,7.78,233.15,233.06,60.0286]
[1759432202387,7.78,233.15,233.04,4.27]
[1759432202592,67.7855,233.15,233.04,4.27]
[1759432202782,67.7855,233.15,232.98,7.04589227]
[1759432202783,7.1,233.1,232.98,3.8602]
[1759432202984,7.1,233.1,232.97,4.25]
[1759432203384,7.1,233.1,233.02,3.8596]
[1759432203592,7.1,233.16,233.02,8.1096]
[1759432203790,7.1,233.16,233.02,4.25]
[1759432203990,10.9573,233.16,233.06,3.8589]
[1759432204294,7.1,233.16,233.05,4.25]
[1759432204888,7.1,233.16,233.0,4.25]
[1759432205294,7.1,233.16,233.03,4.25]
[1759432205495,7.1,233.16,233.07,3.8587]
[1759432205792,7.1,233.16,233.03,4.25]
[1759432206485,7.1,233.16,233.06,3.8589]
[1759432207084,7.1,233.24,233.11,4.25]
[1759432207487,3.8562,233.23,233.12,3.8578]
[1759432207685,3.8562,233.23,233.02,60.0381]
[1759432207686,7.1,233.22,233.03,4.25]
[1759432207889,7.1,233.22,233.05,60.0311]
[1759432208083,3.8567,233.2,233.09,3.8584]
[1759432208690,7.1,233.22,233.09,3.8584]
[1759432208895,3.857,233.18,233.09,3.8584]
[1759432209089,7.1,233.18,233.07,4.25]
[1759432209288,7.1,233.18,233.02,4.25]
[1759432209491,7.1,233.14,233.03,3.8594]
[1759432209892,7.1,233.14,233.02,4.25]
[1759432210090,7.1,233.14,233.03,60.0352]
[1759432210693,3.857,233.18,233.04,4.25]
[1759432211200,7.1,233.17,233.04,4.25]
[1759432211901,7.1,233.17,233.04,8.1092]
[1759432212592,3.8575,233.15,233.06,3.8589]
[1759432213197,7.1,233.17,233.04,4.25]
[1759432213692,3.8573,233.16,233.05,3.859]
[1759432213893,7.1,233.17,233.04,4.25]
[1759432214296,7.1,233.17,233.05,60.0308]
[1759432214599,7.1,233.17,233.06,4.25]
[1759432214805,7.1,233.17,233.06,8.1089]
[1759432214806,10.9571,233.17,233.06,8.1089]
[1759432215402,7.1,233.17,233.06,4.25]
[1759432216103,7.1,233.22,233.07,4.25]
[1759432217402,3.8567,233.2,233.07,4.25]
[1759432217599,7.1,233.22,233.07,4.25]
[1759432218600,3.857,233.18,233.09,3.8584]
[1759432218899,7.1,233.22,233.07,4.25]
[1759432218900,7.1,233.22,233.07,64.2742]
[1759432219398,13.0473483,233.24,233.07,4.25]
[1759432219399,7.1,233.18,233.07,4.25]
[1759432219799,3.8572,233.17,233.07,4.25]
[1759432220506,7.1,233.18,233.07,4.25]
[1759432220703,7.1,233.18,233.1,3.8583]
[1759432221600,7.1,233.18,233.07,8.1086]
[1759432221805,10.957,233.18,233.07,4.25]
[1759432222204,10.957,233.18,233.08,3.8586]